Workbook

Sheet รายงานการขายผลิตภัณฑ์
B1: รายงานการขายผลิตภัณฑ์
B20: ผลิตภัณฑ์

Sheet ข้อมูลประวัติ
B1: ประวัติรายการราคาผลิตภัณฑ์และยอดขาย
B3: รหัสผลิตภัณฑ์ | C3: ชื่อผลิตภัณฑ์ | D3: วันที่กำหนดราคา | E3: ราคาขายปลีกต่อหน่วย | F3: ราคาขายส่งต่อหน่วย* | G3: จำนวนหน่วยที่ขายได้ (ขายปลีก) | H3: จำนวนหน่วยที่ขายได้ (ขายส่ง) | I3: จำนวนขายรวม (#) | J3: จำนวนขายรวม (฿)
B4: 5 | C4: =IFERROR(IF(ตารางยอดขาย[[#This Row],[รหัสผลิตภัณฑ์]]<>"",VLOOKUP(ตารางยอดขาย[รหัสผลิตภัณฑ์],ตารางผลิตภัณฑ์[[รหัสผลิตภัณฑ์]:[ชื่อ]],2,FALSE),""),"Unknown Product ID") -> กางเกงขาสั้น | D4: 2012-01-01 | E4: 20 | F4: ฿20 | G4: 629 | H4: 1,254 | I4: =ตารางยอดขาย[[#This Row],[จำนวนหน่วยที่ขายได้ (ขายปลีก)]]+ตารางยอดขาย[[#This Row],[จำนวนหน่วยที่ขายได้ (ขายส่ง)]] -> 1,883 | J4: =ตารางยอดขาย[[#This Row],[จำนวนหน่วยที่ขายได้ (ขายปลีก)]]*ตารางยอดขาย[[#This Row],[ราคาขายปลีกต่อหน่วย]]+ตารางยอดขาย[[#This Row],[จำนวนหน่วยที่ขายได้ (ขายส่ง)]]*ตารางยอดขาย[[#This Row],[ราคาขายส่งต่อหน่วย*]] -> ฿37,660
B5: 1 | C5: =IFERROR(IF(ตารางยอดขาย[[#This Row],[รหัสผลิตภัณฑ์]]<>"",VLOOKUP(ตารางยอดขาย[รหัสผลิตภัณฑ์],ตารางผลิตภัณฑ์[[รหัสผลิตภัณฑ์]:[ชื่อ]],2,FALSE),""),"Unknown Product ID") -> เสื้อเชิ้ต | D5: 2012-01-01 | E5: 88 | F5: ฿54 | G5: 734 | H5: 1,427 | I5: =ตารางยอดขาย[[#This Row],[จำนวนหน่วยที่ขายได้ (ขายปลีก)]]+ตารางยอดขาย[[#This Row],[จำนวนหน่วยที่ขายได้ (ขายส่ง)]] -> 2,161 | J5: =ตารางยอดขาย[[#This Row],[จำนวนหน่วยที่ขายได้ (ขายปลีก)]]*ตารางยอดขาย[[#This Row],[ราคาขายปลีกต่อหน่วย]]+ตารางยอดขาย[[#This Row],[จำนวนหน่วยที่ขายได้ (ขายส่ง)]]*ตารางยอดขาย[[#This Row],[ราคาขายส่งต่อหน่วย*]] -> ฿141,650
B6: 2 | C6: =IFERROR(IF(ตารางยอดขาย[[#This Row],[รหัสผลิตภัณฑ์]]<>"",VLOOKUP(ตารางยอดขาย[รหัสผลิตภัณฑ์],ตารางผลิตภัณฑ์[[รหัสผลิตภัณฑ์]:[ชื่อ]],2,FALSE),""),"Unknown Product ID") -> รองเท้าแตะ | D6: 2012-01-01 | E6: 70 | F6: ฿44 | G6: 744 | H6: 1,043 | I6: =ตารางยอดขาย[[#This Row],[จำนวนหน่วยที่ขายได้ (ขายปลีก)]]+ตารางยอดขาย[[#This Row],[จำนวนหน่วยที่ขายได้ (ขายส่ง)]] -> 1,787 | J6: =ตารางยอดขาย[[#This Row],[จำนวนหน่วยที่ขายได้ (ขายปลีก)]]*ตารางยอดขาย[[#This Row],[ราคาขายปลีกต่อหน่วย]]+ตารางยอดขาย[[#This Row],[จำนวนหน่วยที่ขายได้ (ขายส่ง)]]*ตารางยอดขาย[[#This Row],[ราคาขายส่งต่อหน่วย*]] -> ฿97,972
B7: 3 | C7: =IFERROR(IF(ตารางยอดขาย[[#This Row],[รหัสผลิตภัณฑ์]]<>"",VLOOKUP(ตารางยอดขาย[รหัสผลิตภัณฑ์],ตารางผลิตภัณฑ์[[รหัสผลิตภัณฑ์]:[ชื่อ]],2,FALSE),""),"Unknown Product ID") -> ร่ม | D7: 2012-01-01 | E7: 63 | F7: ฿44 | G7: 681 | H7: 1,523 | I7: =ตารางยอดขาย[[#This Row],[จำนวนหน่วยที่ขายได้ (ขายปลีก)]]+ตารางยอดขาย[[#This Row],[จำนวนหน่วยที่ขายได้ (ขายส่ง)]] -> 2,204 | J7: =ตารางยอดขาย[[#This Row],[จำนวนหน่วยที่ขายได้ (ขายปลีก)]]*ตารางยอดขาย[[#This Row],[ราคาขายปลีกต่อหน่วย]]+ตารางยอดขาย[[#This Row],[จำนวนหน่วยที่ขายได้ (ขายส่ง)]]*ตารางยอดขาย[[#This Row],[ราคาขายส่งต่อหน่วย*]] -> ฿109,915
B8: 4 | C8: =IFERROR(IF(ตารางยอดขาย[[#This Row],[รหัสผลิตภัณฑ์]]<>"",VLOOKUP(ตารางยอดขาย[รหัสผลิตภัณฑ์],ตารางผลิตภัณฑ์[[รหัสผลิตภัณฑ์]:[ชื่อ]],2,FALSE),""),"Unknown Product ID") -> น้ำขวด | D8: 2012-01-01 | E8: 35 | F8: ฿27 | G8: 602 | H8: 1,822 | I8: =ตารางยอดขาย[[#This Row],[จำนวนหน่วยที่ขายได้ (ขายปลีก)]]+ตารางยอดขาย[[#This Row],[จำนวนหน่วยที่ขายได้ (ขายส่ง)]] -> 2,424 | J8: =ตารางยอดขาย[[#This Row],[จำนวนหน่วยที่ขายได้ (ขายปลีก)]]*ตารางยอดขาย[[#This Row],[ราคาขายปลีกต่อหน่วย]]+ตารางยอดขาย[[#This Row],[จำนวนหน่วยที่ขายได้ (ขายส่ง)]]*ตารางยอดขาย[[#This Row],[ราคาขายส่งต่อหน่วย*]] -> ฿70,264
B9: 1 | C9: =IFERROR(IF(ตารางยอดขาย[[#This Row],[รหัสผลิตภัณฑ์]]<>"",VLOOKUP(ตารางยอดขาย[รหัสผลิตภัณฑ์],ตารางผลิตภัณฑ์[[รหัสผลิตภัณฑ์]:[ชื่อ]],2,FALSE),""),"Unknown Product ID") -> เสื้อเชิ้ต | D9: 2012-02-01 | E9: 55 | F9: ฿44 | G9: 678 | H9: 1,515 | I9: =ตารางยอดขาย[[#This Row],[จำนวนหน่วยที่ขายได้ (ขายปลีก)]]+ตารางยอดขาย[[#This Row],[จำนวนหน่วยที่ขายได้ (ขายส่ง)]] -> 2,193 | J9: =ตารางยอดขาย[[#This Row],[จำนวนหน่วยที่ขายได้ (ขายปลีก)]]*ตารางยอดขาย[[#This Row],[ราคาขายปลีกต่อหน่วย]]+ตารางยอดขาย[[#This Row],[จำนวนหน่วยที่ขายได้ (ขายส่ง)]]*ตารางยอดขาย[[#This Row],[ราคาขายส่งต่อหน่วย*]] -> ฿103,950
B10: 2 | C10: =IFERROR(IF(ตารางยอดขาย[[#This Row],[รหัสผลิตภัณฑ์]]<>"",VLOOKUP(ตารางยอดขาย[รหัสผลิตภัณฑ์],ตารางผลิตภัณฑ์[[รหัสผลิตภัณฑ์]:[ชื่อ]],2,FALSE),""),"Unknown Product ID") -> รองเท้าแตะ | D10: 2012-02-01 | E10: 83 | F10: ฿54 | G10: 753 | H10: 1,005 | I10: =ตารางยอดขาย[[#This Row],[จำนวนหน่วยที่ขายได้ (ขายปลีก)]]+ตารางยอดขาย[[#This Row],[จำนวนหน่วยที่ขายได้ (ขายส่ง)]] -> 1,758 | J10: =ตารางยอดขาย[[#This Row],[จำนวนหน่วยที่ขายได้ (ขายปลีก)]]*ตารางยอดขาย[[#This Row],[ราคาขายปลีกต่อหน่วย]]+ตารางยอดขาย[[#This Row],[จำนวนหน่วยที่ขายได้ (ขายส่ง)]]*ตารางยอดขาย[[#This Row],[ราคาขายส่งต่อหน่วย*]] -> ฿116,769
B11: 3 | C11: =IFERROR(IF(ตารางยอดขาย[[#This Row],[รหัสผลิตภัณฑ์]]<>"",VLOOKUP(ตารางยอดขาย[รหัสผลิตภัณฑ์],ตารางผลิตภัณฑ์[[รหัสผลิตภัณฑ์]:[ชื่อ]],2,FALSE),""),"Unknown Product ID") -> ร่ม | D11: 2012-02-01 | E11: 34 | F11: ฿34 | G11: 986 | H11: 1,069 | I11: =ตารางยอดขาย[[#This Row],[จำนวนหน่วยที่ขายได้ (ขายปลีก)]]+ตารางยอดขาย[[#This Row],[จำนวนหน่วยที่ขายได้ (ขายส่ง)]] -> 2,055 | J11: =ตารางยอดขาย[[#This Row],[จำนวนหน่วยที่ขายได้ (ขายปลีก)]]*ตารางยอดขาย[[#This Row],[ราคาขายปลีกต่อหน่วย]]+ตารางยอดขาย[[#This Row],[จำนวนหน่วยที่ขายได้ (ขายส่ง)]]*ตารางยอดขาย[[#This Row],[ราคาขายส่งต่อหน่วย*]] -> ฿69,870
B12: 4 | C12: =IFERROR(IF(ตารางยอดขาย[[#This Row],[รหัสผลิตภัณฑ์]]<>"",VLOOKUP(ตารางยอดขาย[รหัสผลิตภัณฑ์],ตารางผลิตภัณฑ์[[รหัสผลิตภัณฑ์]:[ชื่อ]],2,FALSE),""),"Unknown Product ID") -> น้ำขวด | D12: 2012-02-01 | E12: 35 | F12: ฿25 | G12: 848 | H12: 1,211 | I12: =ตารางยอดขาย[[#This Row],[จำนวนหน่วยที่ขายได้ (ขายปลีก)]]+ตารางยอดขาย[[#This Row],[จำนวนหน่วยที่ขายได้ (ขายส่ง)]] -> 2,059 | J12: =ตารางยอดขาย[[#This Row],[จำนวนหน่วยที่ขายได้ (ขายปลีก)]]*ตารางยอดขาย[[#This Row],[ราคาขายปลีกต่อหน่วย]]+ตารางยอดขาย[[#This Row],[จำนวนหน่วยที่ขายได้ (ขายส่ง)]]*ตารางยอดขาย[[#This Row],[ราคาขายส่งต่อหน่วย*]] -> ฿59,955
B13: 5 | C13: =IFERROR(IF(ตารางยอดขาย[[#This Row],[รหัสผลิตภัณฑ์]]<>"",VLOOKUP(ตารางยอดขาย[รหัสผลิตภัณฑ์],ตารางผลิตภัณฑ์[[รหัสผลิตภัณฑ์]:[ชื่อ]],2,FALSE),""),"Unknown Product ID") -> กางเกงขาสั้น | D13: 2012-02-01 | E13: 41 | F13: ฿38 | G13: 980 | H13: 1,330 | I13: =ตารางยอดขาย[[#This Row],[จำนวนหน่วยที่ขายได้ (ขายปลีก)]]+ตารางยอดขาย[[#This Row],[จำนวนหน่วยที่ขายได้ (ขายส่ง)]] -> 2,310 | J13: =ตารางยอดขาย[[#This Row],[จำนวนหน่วยที่ขายได้ (ขายปลีก)]]*ตารางยอดขาย[[#This Row],[ราคาขายปลีกต่อหน่วย]]+ตารางยอดขาย[[#This Row],[จำนวนหน่วยที่ขายได้ (ขายส่ง)]]*ตารางยอดขาย[[#This Row],[ราคาขายส่งต่อหน่วย*]] -> ฿90,720
B14: 1 | C14: =IFERROR(IF(ตารางยอดขาย[[#This Row],[รหัสผลิตภัณฑ์]]<>"",VLOOKUP(ตารางยอดขาย[รหัสผลิตภัณฑ์],ตารางผลิตภัณฑ์[[รหัสผลิตภัณฑ์]:[ชื่อ]],2,FALSE),""),"Unknown Product ID") -> เสื้อเชิ้ต | D14: 2012-02-29 | E14: 27 | F14: ฿18 | G14: 533 | H14: 1,936 | I14: =ตารางยอดขาย[[#This Row],[จำนวนหน่วยที่ขายได้ (ขายปลีก)]]+ตารางยอดขาย[[#This Row],[จำนวนหน่วยที่ขายได้ (ขายส่ง)]] -> 2,469 | J14: =ตารางยอดขาย[[#This Row],[จำนวนหน่วยที่ขายได้ (ขายปลีก)]]*ตารางยอดขาย[[#This Row],[ราคาขายปลีกต่อหน่วย]]+ตารางยอดขาย[[#This Row],[จำนวนหน่วยที่ขายได้ (ขายส่ง)]]*ตารางยอดขาย[[#This Row],[ราคาขายส่งต่อหน่วย*]] -> ฿49,239
B15: 2 | C15: =IFERROR(IF(ตารางยอดขาย[[#This Row],[รหัสผลิตภัณฑ์]]<>"",VLOOKUP(ตารางยอดขาย[รหัสผลิตภัณฑ์],ตารางผลิตภัณฑ์[[รหัสผลิตภัณฑ์]:[ชื่อ]],2,FALSE),""),"Unknown Product ID") -> รองเท้าแตะ | D15: 2012-02-29 | E15: 38 | F15: ฿28 | G15: 952 | H15: 1,512 | I15: =ตารางยอดขาย[[#This Row],[จำนวนหน่วยที่ขายได้ (ขายปลีก)]]+ตารางยอดขาย[[#This Row],[จำนวนหน่วยที่ขายได้ (ขายส่ง)]] -> 2,464 | J15: =ตารางยอดขาย[[#This Row],[จำนวนหน่วยที่ขายได้ (ขายปลีก)]]*ตารางยอดขาย[[#This Row],[ราคาขายปลีกต่อหน่วย]]+ตารางยอดขาย[[#This Row],[จำนวนหน่วยที่ขายได้ (ขายส่ง)]]*ตารางยอดขาย[[#This Row],[ราคาขายส่งต่อหน่วย*]] -> ฿78,512
B16: 3 | C16: =IFERROR(IF(ตารางยอดขาย[[#This Row],[รหัสผลิตภัณฑ์]]<>"",VLOOKUP(ตารางยอดขาย[รหัสผลิตภัณฑ์],ตารางผลิตภัณฑ์[[รหัสผลิตภัณฑ์]:[ชื่อ]],2,FALSE),""),"Unknown Product ID") -> ร่ม | D16: 2012-02-29 | E16: 92 | F16: ฿92 | G16: 956 | H16: 1,266 | I16: =ตารางยอดขาย[[#This Row],[จำนวนหน่วยที่ขายได้ (ขายปลีก)]]+ตารางยอดขาย[[#This Row],[จำนวนหน่วยที่ขายได้ (ขายส่ง)]] -> 2,222 | J16: =ตารางยอดขาย[[#This Row],[จำนวนหน่วยที่ขายได้ (ขายปลีก)]]*ตารางยอดขาย[[#This Row],[ราคาขายปลีกต่อหน่วย]]+ตารางยอดขาย[[#This Row],[จำนวนหน่วยที่ขายได้ (ขายส่ง)]]*ตารางยอดขาย[[#This Row],[ราคาขายส่งต่อหน่วย*]] -> ฿204,424
B17: 4 | C17: =IFERROR(IF(ตารางยอดขาย[[#This Row],[รหัสผลิตภัณฑ์]]<>"",VLOOKUP(ตารางยอดขาย[รหัสผลิตภัณฑ์],ตารางผลิตภัณฑ์[[รหัสผลิตภัณฑ์]:[ชื่อ]],2,FALSE),""),"Unknown Product ID") -> น้ำขวด | D17: 2012-02-29 | E17: 43 | F17: ฿36 | G17: 952 | H17: 1,390 | I17: =ตารางยอดขาย[[#This Row],[จำนวนหน่วยที่ขายได้ (ขายปลีก)]]+ตารางยอดขาย[[#This Row],[จำนวนหน่วยที่ขายได้ (ขายส่ง)]] -> 2,342 | J17: =ตารางยอดขาย[[#This Row],[จำนวนหน่วยที่ขายได้ (ขายปลีก)]]*ตารางยอดขาย[[#This Row],[ราคาขายปลีกต่อหน่วย]]+ตารางยอดขาย[[#This Row],[จำนวนหน่วยที่ขายได้ (ขายส่ง)]]*ตารางยอดขาย[[#This Row],[ราคาขายส่งต่อหน่วย*]] -> ฿90,976
B18: 5 | C18: =IFERROR(IF(ตารางยอดขาย[[#This Row],[รหัสผลิตภัณฑ์]]<>"",VLOOKUP(ตารางยอดขาย[รหัสผลิตภัณฑ์],ตารางผลิตภัณฑ์[[รหัสผลิตภัณฑ์]:[ชื่อ]],2,FALSE),""),"Unknown Product ID") -> กางเกงขาสั้น | D18: 2012-02-29 | E18: 98 | F18: ฿73 | G18: 530 | H18: 1,452 | I18: =ตารางยอดขาย[[#This Row],[จำนวนหน่วยที่ขายได้ (ขายปลีก)]]+ตารางยอดขาย[[#This Row],[จำนวนหน่วยที่ขายได้ (ขายส่ง)]] -> 1,982 | J18: =ตารางยอดขาย[[#This Row],[จำนวนหน่วยที่ขายได้ (ขายปลีก)]]*ตารางยอดขาย[[#This Row],[ราคาขายปลีกต่อหน่วย]]+ตารางยอดขาย[[#This Row],[จำนวนหน่วยที่ขายได้ (ขายส่ง)]]*ตารางยอดขาย[[#This Row],[ราคาขายส่งต่อหน่วย*]] -> ฿157,936
B19: 1 | C19: =IFERROR(IF(ตารางยอดขาย[[#This Row],[รหัสผลิตภัณฑ์]]<>"",VLOOKUP(ตารางยอดขาย[รหัสผลิตภัณฑ์],ตารางผลิตภัณฑ์[[รหัสผลิตภัณฑ์]:[ชื่อ]],2,FALSE),""),"Unknown Product ID") -> เสื้อเชิ้ต | D19: 2012-03-31 | E19: 38 | F19: ฿28 | G19: 973 | H19: 1,415 | I19: =ตารางยอดขาย[[#This Row],[จำนวนหน่วยที่ขายได้ (ขายปลีก)]]+ตารางยอดขาย[[#This Row],[จำนวนหน่วยที่ขายได้ (ขายส่ง)]] -> 2,388 | J19: =ตารางยอดขาย[[#This Row],[จำนวนหน่วยที่ขายได้ (ขายปลีก)]]*ตารางยอดขาย[[#This Row],[ราคาขายปลีกต่อหน่วย]]+ตารางยอดขาย[[#This Row],[จำนวนหน่วยที่ขายได้ (ขายส่ง)]]*ตารางยอดขาย[[#This Row],[ราคาขายส่งต่อหน่วย*]] -> ฿76,594
B20: 2 | C20: =IFERROR(IF(ตารางยอดขาย[[#This Row],[รหัสผลิตภัณฑ์]]<>"",VLOOKUP(ตารางยอดขาย[รหัสผลิตภัณฑ์],ตารางผลิตภัณฑ์[[รหัสผลิตภัณฑ์]:[ชื่อ]],2,FALSE),""),"Unknown Product ID") -> รองเท้าแตะ | D20: 2012-03-31 | E20: 50 | F20: ฿36 | G20: 672 | H20: 1,105 | I20: =ตารางยอดขาย[[#This Row],[จำนวนหน่วยที่ขายได้ (ขายปลีก)]]+ตารางยอดขาย[[#This Row],[จำนวนหน่วยที่ขายได้ (ขายส่ง)]] -> 1,777 | J20: =ตารางยอดขาย[[#This Row],[จำนวนหน่วยที่ขายได้ (ขายปลีก)]]*ตารางยอดขาย[[#This Row],[ราคาขายปลีกต่อหน่วย]]+ตารางยอดขาย[[#This Row],[จำนวนหน่วยที่ขายได้ (ขายส่ง)]]*ตารางยอดขาย[[#This Row],[ราคาขายส่งต่อหน่วย*]] -> ฿73,380
B21: 3 | C21: =IFERROR(IF(ตารางยอดขาย[[#This Row],[รหัสผลิตภัณฑ์]]<>"",VLOOKUP(ตารางยอดขาย[รหัสผลิตภัณฑ์],ตารางผลิตภัณฑ์[[รหัสผลิตภัณฑ์]:[ชื่อ]],2,FALSE),""),"Unknown Product ID") -> ร่ม | D21: 2012-03-31 | E21: 24 | F21: ฿23 | G21: 769 | H21: 1,629 | I21: =ตารางยอดขาย[[#This Row],[จำนวนหน่วยที่ขายได้ (ขายปลีก)]]+ตารางยอดขาย[[#This Row],[จำนวนหน่วยที่ขายได้ (ขายส่ง)]] -> 2,398 | J21: =ตารางยอดขาย[[#This Row],[จำนวนหน่วยที่ขายได้ (ขายปลีก)]]*ตารางยอดขาย[[#This Row],[ราคาขายปลีกต่อหน่วย]]+ตารางยอดขาย[[#This Row],[จำนวนหน่วยที่ขายได้ (ขายส่ง)]]*ตารางยอดขาย[[#This Row],[ราคาขายส่งต่อหน่วย*]] -> ฿55,923
B22: 4 | C22: =IFERROR(IF(ตารางยอดขาย[[#This Row],[รหัสผลิตภัณฑ์]]<>"",VLOOKUP(ตารางยอดขาย[รหัสผลิตภัณฑ์],ตารางผลิตภัณฑ์[[รหัสผลิตภัณฑ์]:[ชื่อ]],2,FALSE),""),"Unknown Product ID") -> น้ำขวด | D22: 2012-03-31 | E22: 72 | F22: ฿57 | G22: 985 | H22: 1,848 | I22: =ตารางยอดขาย[[#This Row],[จำนวนหน่วยที่ขายได้ (ขายปลีก)]]+ตารางยอดขาย[[#This Row],[จำนวนหน่วยที่ขายได้ (ขายส่ง)]] -> 2,833 | J22: =ตารางยอดขาย[[#This Row],[จำนวนหน่วยที่ขายได้ (ขายปลีก)]]*ตารางยอดขาย[[#This Row],[ราคาขายปลีกต่อหน่วย]]+ตารางยอดขาย[[#This Row],[จำนวนหน่วยที่ขายได้ (ขายส่ง)]]*ตารางยอดขาย[[#This Row],[ราคาขายส่งต่อหน่วย*]] -> ฿176,256
B23: 5 | C23: =IFERROR(IF(ตารางยอดขาย[[#This Row],[รหัสผลิตภัณฑ์]]<>"",VLOOKUP(ตารางยอดขาย[รหัสผลิตภัณฑ์],ตารางผลิตภัณฑ์[[รหัสผลิตภัณฑ์]:[ชื่อ]],2,FALSE),""),"Unknown Product ID") -> กางเกงขาสั้น | D23: 2012-03-31 | E23: 85 | F23: ฿43 | G23: 721 | H23: 1,426 | I23: =ตารางยอดขาย[[#This Row],[จำนวนหน่วยที่ขายได้ (ขายปลีก)]]+ตารางยอดขาย[[#This Row],[จำนวนหน่วยที่ขายได้ (ขายส่ง)]] -> 2,147 | J23: =ตารางยอดขาย[[#This Row],[จำนวนหน่วยที่ขายได้ (ขายปลีก)]]*ตารางยอดขาย[[#This Row],[ราคาขายปลีกต่อหน่วย]]+ตารางยอดขาย[[#This Row],[จำนวนหน่วยที่ขายได้ (ขายส่ง)]]*ตารางยอดขาย[[#This Row],[ราคาขายส่งต่อหน่วย*]] -> ฿122,603
B24: 1 | C24: =IFERROR(IF(ตารางยอดขาย[[#This Row],[รหัสผลิตภัณฑ์]]<>"",VLOOKUP(ตารางยอดขาย[รหัสผลิตภัณฑ์],ตารางผลิตภัณฑ์[[รหัสผลิตภัณฑ์]:[ชื่อ]],2,FALSE),""),"Unknown Product ID") -> เสื้อเชิ้ต | D24: 2012-04-30 | E24: 91 | F24: ฿65 | G24: 603 | H24: 1,226 | I24: =ตารางยอดขาย[[#This Row],[จำนวนหน่วยที่ขายได้ (ขายปลีก)]]+ตารางยอดขาย[[#This Row],[จำนวนหน่วยที่ขายได้ (ขายส่ง)]] -> 1,829 | J24: =ตารางยอดขาย[[#This Row],[จำนวนหน่วยที่ขายได้ (ขายปลีก)]]*ตารางยอดขาย[[#This Row],[ราคาขายปลีกต่อหน่วย]]+ตารางยอดขาย[[#This Row],[จำนวนหน่วยที่ขายได้ (ขายส่ง)]]*ตารางยอดขาย[[#This Row],[ราคาขายส่งต่อหน่วย*]] -> ฿134,563
B25: 2 | C25: =IFERROR(IF(ตารางยอดขาย[[#This Row],[รหัสผลิตภัณฑ์]]<>"",VLOOKUP(ตารางยอดขาย[รหัสผลิตภัณฑ์],ตารางผลิตภัณฑ์[[รหัสผลิตภัณฑ์]:[ชื่อ]],2,FALSE),""),"Unknown Product ID") -> รองเท้าแตะ | D25: 2012-04-30 | E25: 91 | F25: ฿55 | G25: 892 | H25: 1,823 | I25: =ตารางยอดขาย[[#This Row],[จำนวนหน่วยที่ขายได้ (ขายปลีก)]]+ตารางยอดขาย[[#This Row],[จำนวนหน่วยที่ขายได้ (ขายส่ง)]] -> 2,715 | J25: =ตารางยอดขาย[[#This Row],[จำนวนหน่วยที่ขายได้ (ขายปลีก)]]*ตารางยอดขาย[[#This Row],[ราคาขายปลีกต่อหน่วย]]+ตารางยอดขาย[[#This Row],[จำนวนหน่วยที่ขายได้ (ขายส่ง)]]*ตารางยอดขาย[[#This Row],[ราคาขายส่งต่อหน่วย*]] -> ฿181,437
B26: 3 | C26: =IFERROR(IF(ตารางยอดขาย[[#This Row],[รหัสผลิตภัณฑ์]]<>"",VLOOKUP(ตารางยอดขาย[รหัสผลิตภัณฑ์],ตารางผลิตภัณฑ์[[รหัสผลิตภัณฑ์]:[ชื่อ]],2,FALSE),""),"Unknown Product ID") -> ร่ม | D26: 2012-04-30 | E26: 42 | F26: ฿42 | G26: 611 | H26: 1,181 | I26: =ตารางยอดขาย[[#This Row],[จำนวนหน่วยที่ขายได้ (ขายปลีก)]]+ตารางยอดขาย[[#This Row],[จำนวนหน่วยที่ขายได้ (ขายส่ง)]] -> 1,792 | J26: =ตารางยอดขาย[[#This Row],[จำนวนหน่วยที่ขายได้ (ขายปลีก)]]*ตารางยอดขาย[[#This Row],[ราคาขายปลีกต่อหน่วย]]+ตารางยอดขาย[[#This Row],[จำนวนหน่วยที่ขายได้ (ขายส่ง)]]*ตารางยอดขาย[[#This Row],[ราคาขายส่งต่อหน่วย*]] -> ฿75,264
B27: 4 | C27: =IFERROR(IF(ตารางยอดขาย[[#This Row],[รหัสผลิตภัณฑ์]]<>"",VLOOKUP(ตารางยอดขาย[รหัสผลิตภัณฑ์],ตารางผลิตภัณฑ์[[รหัสผลิตภัณฑ์]:[ชื่อ]],2,FALSE),""),"Unknown Product ID") -> น้ำขวด | D27: 2012-04-30 | E27: 85 | F27: ฿43 | G27: 530 | H27: 1,039 | I27: =ตารางยอดขาย[[#This Row],[จำนวนหน่วยที่ขายได้ (ขายปลีก)]]+ตารางยอดขาย[[#This Row],[จำนวนหน่วยที่ขายได้ (ขายส่ง)]] -> 1,569 | J27: =ตารางยอดขาย[[#This Row],[จำนวนหน่วยที่ขายได้ (ขายปลีก)]]*ตารางยอดขาย[[#This Row],[ราคาขายปลีกต่อหน่วย]]+ตารางยอดขาย[[#This Row],[จำนวนหน่วยที่ขายได้ (ขายส่ง)]]*ตารางยอดขาย[[#This Row],[ราคาขายส่งต่อหน่วย*]] -> ฿89,727
B28: 5 | C28: =IFERROR(IF(ตารางยอดขาย[[#This Row],[รหัสผลิตภัณฑ์]]<>"",VLOOKUP(ตารางยอดขาย[รหัสผลิตภัณฑ์],ตารางผลิตภัณฑ์[[รหัสผลิตภัณฑ์]:[ชื่อ]],2,FALSE),""),"Unknown Product ID") -> กางเกงขาสั้น | D28: 2012-04-30 | E28: 82 | F28: ฿71 | G28: 716 | H28: 1,249 | I28: =ตารางยอดขาย[[#This Row],[จำนวนหน่วยที่ขายได้ (ขายปลีก)]]+ตารางยอดขาย[[#This Row],[จำนวนหน่วยที่ขายได้ (ขายส่ง)]] -> 1,965 | J28: =ตารางยอดขาย[[#This Row],[จำนวนหน่วยที่ขายได้ (ขายปลีก)]]*ตารางยอดขาย[[#This Row],[ราคาขายปลีกต่อหน่วย]]+ตารางยอดขาย[[#This Row],[จำนวนหน่วยที่ขายได้ (ขายส่ง)]]*ตารางยอดขาย[[#This Row],[ราคาขายส่งต่อหน่วย*]] -> ฿147,391
B29: 1 | C29: =IFERROR(IF(ตารางยอดขาย[[#This Row],[รหัสผลิตภัณฑ์]]<>"",VLOOKUP(ตารางยอดขาย[รหัสผลิตภัณฑ์],ตารางผลิตภัณฑ์[[รหัสผลิตภัณฑ์]:[ชื่อ]],2,FALSE),""),"Unknown Product ID") -> เสื้อเชิ้ต | D29: 2012-05-14 | E29: 34 | F29: ฿31 | G29: 850 | H29: 1,548 | I29: =ตารางยอดขาย[[#This Row],[จำนวนหน่วยที่ขายได้ (ขายปลีก)]]+ตารางยอดขาย[[#This Row],[จำนวนหน่วยที่ขายได้ (ขายส่ง)]] -> 2,398 | J29: =ตารางยอดขาย[[#This Row],[จำนวนหน่วยที่ขายได้ (ขายปลีก)]]*ตารางยอดขาย[[#This Row],[ราคาขายปลีกต่อหน่วย]]+ตารางยอดขาย[[#This Row],[จำนวนหน่วยที่ขายได้ (ขายส่ง)]]*ตารางยอดขาย[[#This Row],[ราคาขายส่งต่อหน่วย*]] -> ฿76,888
B30: 2 | C30: =IFERROR(IF(ตารางยอดขาย[[#This Row],[รหัสผลิตภัณฑ์]]<>"",VLOOKUP(ตารางยอดขาย[รหัสผลิตภัณฑ์],ตารางผลิตภัณฑ์[[รหัสผลิตภัณฑ์]:[ชื่อ]],2,FALSE),""),"Unknown Product ID") -> รองเท้าแตะ | D30: 2012-05-14 | E30: 64 | F30: ฿40 | G30: 876 | H30: 1,663 | I30: =ตารางยอดขาย[[#This Row],[จำนวนหน่วยที่ขายได้ (ขายปลีก)]]+ตารางยอดขาย[[#This Row],[จำนวนหน่วยที่ขายได้ (ขายส่ง)]] -> 2,539 | J30: =ตารางยอดขาย[[#This Row],[จำนวนหน่วยที่ขายได้ (ขายปลีก)]]*ตารางยอดขาย[[#This Row],[ราคาขายปลีกต่อหน่วย]]+ตารางยอดขาย[[#This Row],[จำนวนหน่วยที่ขายได้ (ขายส่ง)]]*ตารางยอดขาย[[#This Row],[ราคาขายส่งต่อหน่วย*]] -> ฿122,584
B31: 3 | C31: =IFERROR(IF(ตารางยอดขาย[[#This Row],[รหัสผลิตภัณฑ์]]<>"",VLOOKUP(ตารางยอดขาย[รหัสผลิตภัณฑ์],ตารางผลิตภัณฑ์[[รหัสผลิตภัณฑ์]:[ชื่อ]],2,FALSE),""),"Unknown Product ID") -> ร่ม | D31: 2012-05-14 | E31: 33 | F31: ฿30 | G31: 881 | H31: 1,149 | I31: =ตารางยอดขาย[[#This Row],[จำนวนหน่วยที่ขายได้ (ขายปลีก)]]+ตารางยอดขาย[[#This Row],[จำนวนหน่วยที่ขายได้ (ขายส่ง)]] -> 2,030 | J31: =ตารางยอดขาย[[#This Row],[จำนวนหน่วยที่ขายได้ (ขายปลีก)]]*ตารางยอดขาย[[#This Row],[ราคาขายปลีกต่อหน่วย]]+ตารางยอดขาย[[#This Row],[จำนวนหน่วยที่ขายได้ (ขายส่ง)]]*ตารางยอดขาย[[#This Row],[ราคาขายส่งต่อหน่วย*]] -> ฿63,543
B32: 4 | C32: =IFERROR(IF(ตารางยอดขาย[[#This Row],[รหัสผลิตภัณฑ์]]<>"",VLOOKUP(ตารางยอดขาย[รหัสผลิตภัณฑ์],ตารางผลิตภัณฑ์[[รหัสผลิตภัณฑ์]:[ชื่อ]],2,FALSE),""),"Unknown Product ID") -> น้ำขวด | D32: 2012-05-14 | E32: 29 | F32: ฿27 | G32: 802 | H32: 1,548 | I32: =ตารางยอดขาย[[#This Row],[จำนวนหน่วยที่ขายได้ (ขายปลีก)]]+ตารางยอดขาย[[#This Row],[จำนวนหน่วยที่ขายได้ (ขายส่ง)]] -> 2,350 | J32: =ตารางยอดขาย[[#This Row],[จำนวนหน่วยที่ขายได้ (ขายปลีก)]]*ตารางยอดขาย[[#This Row],[ราคาขายปลีกต่อหน่วย]]+ตารางยอดขาย[[#This Row],[จำนวนหน่วยที่ขายได้ (ขายส่ง)]]*ตารางยอดขาย[[#This Row],[ราคาขายส่งต่อหน่วย*]] -> ฿65,054
B33: 5 | C33: =IFERROR(IF(ตารางยอดขาย[[#This Row],[รหัสผลิตภัณฑ์]]<>"",VLOOKUP(ตารางยอดขาย[รหัสผลิตภัณฑ์],ตารางผลิตภัณฑ์[[รหัสผลิตภัณฑ์]:[ชื่อ]],2,FALSE),""),"Unknown Product ID") -> กางเกงขาสั้น | D33: 2013-12-11 | E33: 24 | F33: ฿15 | G33: 824 | H33: 1,994 | I33: =ตารางยอดขาย[[#This Row],[จำนวนหน่วยที่ขายได้ (ขายปลีก)]]+ตารางยอดขาย[[#This Row],[จำนวนหน่วยที่ขายได้ (ขายส่ง)]] -> 2,818 | J33: =ตารางยอดขาย[[#This Row],[จำนวนหน่วยที่ขายได้ (ขายปลีก)]]*ตารางยอดขาย[[#This Row],[ราคาขายปลีกต่อหน่วย]]+ตารางยอดขาย[[#This Row],[จำนวนหน่วยที่ขายได้ (ขายส่ง)]]*ตารางยอดขาย[[#This Row],[ราคาขายส่งต่อหน่วย*]] -> ฿49,686

Sheet รายการราคา
B1: รายการราคาผลิตภัณฑ์
B3: Adventure Works
B4: 23456 ถนนรามคำแหง
B5: อำเภอเมือง จังหวัดเชียงใหม่ 77503
B6: โทร: (425) 555-0150
B7: โทรสาร: (425) 555-0152
B8: www.adventure-works.com | F8: อัปเดตล่าสุดเมื่อ 15 ส.ค. 2556
B10: รหัสผลิตภัณฑ์ | C10: ชื่อ | D10: คำอธิบาย | E10: ราคาขายปลีกต่อหน่วย | F10: ราคาขายส่งต่อหน่วย*
B11: 1 | C11: เสื้อเชิ้ต | D11: ช่วยให้คุณเย็นสดชื่นตลอดหน้าร้อนเมื่อใส่เสื้อเชิ้ตที่ทำจากผ้าฝ้าย 100% ที่ผ่านการหดตัวแล้วของเรา | E11: ฿22 | F11: ฿15.00
B12: 2 | C12: รองเท้าแตะ | D12: สวมใส่รองเท้าแตะพื้นยางสำหรับการใช้งานหนักของเราและเดินบนพื้นทรายที่ร้อนระอุอย่างสบายใจ | E12: ฿10 | F12: ฿6.00
B13: 3 | C13: ร่ม | D13: หลบเลี่ยงแสงอาทิตย์ภายใต้ร่มชายหาดขนาดใหญ่พิเศษของเราที่ปิดกั้นรังสียูวีที่เป็นอันตรายทั้งหมดได้ถึง 96% | E13: ฿30 | F13: ฿20.00
B14: 4 | C14: น้ำขวด | D14: เติมความชุ่มฉ่ำให้ตัวคุณด้วยน้ำที่มีอุณหภูมิพอเหมาะจากน้ำขวดหุ้มฉนวนของเรา | E14: ฿7 | F14: ฿5.00
B15: 5 | C15: กางเกงขาสั้น | D15: ขึ้นจากน้ำตรงดิ่งไปยังรถของคุณได้เลยเมื่อใส่กางเกงขาสั้นไนลอนแห้งเร็วสุดๆของเรา | E15: ฿15 | F15: ฿8.00
F17: โปรดติดต่อเราสำหรับรายการที่ไม่ได้แสดง
F18: *ราคาขายส่งใช้กับการซื้อตั้งแต่ 12 หน่วยขึ้นไป

Sheet Pivot ช่วงระดับราคา (hidden)
B1: PivotTable ช่วงระดับราคา
B2: แผ่นงานนี้ควรยังคงซ่อนอยู่ การปรับเปลี่ยนใดๆ ที่ทำกับ PivotTable ด้านล่างอาจทำให้ข้อมูลผิดพลาดในรายงานการขายผลิตภัณฑ์
B3: ผลิตภัณฑ์ที่เลือก: | C3: =IF(LEN(B5),B5,"ไม่มี") -> กางเกงขาสั้น
B4: ชื่อผลิตภัณฑ์ | C4: ราคาขายปลีกต่อหน่วย | D4: ผลรวม ของ จำนวนขายรวม (#)
B5: กางเกงขาสั้น | C5: ฿20 | D5: 1883
C6: ฿24 | D6: 2818
C7: ฿41 | D7: 2310
C8: ฿82 | D8: 1965
C9: ฿85 | D9: 2147
C10: ฿98 | D10: 1982

Sheet Pivot แนวโน้มการขาย (hidden)
B1: PivotTable แนวโน้มการขาย
B2: แผ่นงานนี้ควรยังคงซ่อนอยู่ การปรับเปลี่ยนใดๆ ที่ทำกับ PivotTable ด้านล่างอาจทำให้ข้อมูลผิดพลาดในรายงานการขายผลิตภัณฑ์
B3: ผลรวม ของ จำนวนขายรวม (#) | C3: ชื่อผลิตภัณฑ์
B4: วันที่กำหนดราคา | C4: กางเกงขาสั้น
B5: ม.ค. | C5: 1883
B6: ก.พ. | C6: 4292
B7: มี.ค. | C7: 2147
B8: เม.ย. | C8: 1965
B9: ธ.ค. | C9: 2818
